fUST/lending_fUST_20250722
["ID","MTS","AMOUNT","RATE_DAILY","PERIOD"]
[373936130,1753157471195,-939.56988204,0.00019568,2]
[373936131,1753157471204,-1500.0,0.00019568,2]
[373936132,1753157471214,-1500.0,0.00019568,2]
[373936133,1753157471223,-1500.0,0.00019568,2]
[373936134,1753157471232,-1500.0,0.00019568,2]
[373936135,1753157471241,-1500.0,0.00019568,2]
[373936136,1753157471251,-754.96277242,0.00019568,2]
[373936137,1753157471260,-822.58031121,0.00019568,2]
[373936138,1753157471270,-1500.0,0.00019568,2]
[373936139,1753157471280,-502.10753571,0.00019568,2]
[373936140,1753157471290,-1005.53775134,0.00019568,2]
[373936141,1753157471299,-360.0,0.00019602,2]
[373936142,1753157471309,-2396.01,0.00019614,2]
[373936143,1753157471318,-2547.56,0.00019614,2]
[373936144,1753157471328,-151.0,0.00019614,2]
[373936145,1753157471337,-3430.95,0.00019614,2]
[373936146,1753157471346,-460.0,0.00019614,2]
[373936147,1753157471356,-151.0,0.00019614,2]
[373936148,1753157471365,-151.0,0.00019614,2]
[373936149,1753157471374,-987.16,0.00019614,2]
[373936150,1753157471384,-151.0,0.00019614,2]
[373936151,1753157471394,-151.0,0.00019614,2]
[373936152,1753157471403,-3208.19,0.00019614,2]
[373936153,1753157471412,-1890.9,0.00019614,2]
[373936154,1753157471423,-3213.13,0.00019614,2]
[373936155,1753157471432,-460.0,0.00019614,2]
[373936156,1753157471441,-1003.583072,0.00019614,2]
[373936157,1753157471450,-1003.583066,0.00019614,2]
[373936158,1753157471460,-600.0,0.00019649,2]
[373936159,1753157471469,-224.0,0.0001965,2]
[373936160,1753157471479,-224.0,0.00019652,2]
[373936161,1753157471488,-508.399499,0.00019665,2]
[373936162,1753157471497,-715.50950464,0.00019665,2]
[373936163,1753157471507,-923.14,0.00019683,2]
[373936164,1753157471516,-1019.9,0.00019683,2]
[373936165,1753157471525,-3216.22,0.00019683,2]
[373936166,1753157471534,-424.94696185,0.00019684,2]
[373936167,1753157471543,-460.0,0.00019684,2]
[373936168,1753157471552,-5107.47,0.00019684,2]
[373936169,1753157471562,-1520.76,0.00019684,2]
[373936170,1753157471572,-1027.18,0.00019684,2]
[373936171,1753157471581,-4817.64,0.00019684,2]
[373936172,1753157471590,-611.75,0.00019684,2]
[373936173,1753157471599,-1033.11,0.00019684,2]
[373936174,1753157471608,-2115.93,0.00019684,2]
[373936175,1753157471617,-1244.02,0.00019684,2]
[373936176,1753157471627,-716.0,0.00019685,2]
[373936177,1753157471637,-460.0,0.00019685,2]
[373936178,1753157471646,-713.91,0.00019685,2]
[373936179,1753157471656,-460.0,0.00019685,2]
[373936180,1753157471666,-527.76,0.00019685,2]
[373936181,1753157471677,-486.75,0.00019685,2]
[373936182,1753157471686,-537.44,0.00019685,2]
[373936183,1753157471696,-515.51,0.00019685,2]
[373936184,1753157471705,-460.0,0.00019685,2]
[373936185,1753157471714,-460.0,0.00019685,2]
[373936186,1753157471723,-460.0,0.00019685,2]
[373936187,1753157471736,-460.0,0.00019685,2]
[373936188,1753157471745,-9991.89,0.00019685,2]
[373936189,1753157471755,-460.0,0.00019685,2]
[373936190,1753157471764,-460.0,0.00019685,2]
[373936191,1753157471774,-460.0,0.00019685,2]
[373936192,1753157471783,-901.37,0.00019685,2]
[373936193,1753157471793,-460.0,0.00019685,2]
[373936194,1753157471802,-460.0,0.00019685,2]
[373936195,1753157471813,-460.0,0.00019685,2]
[373936196,1753157471822,-1172.04,0.00019685,2]
[373936197,1753157471831,-460.0,0.00019685,2]
[373936198,1753157471841,-1438.68,0.00019685,2]
[373936199,1753157471850,-1388.47,0.00019685,2]
[373936200,1753157471859,-959.19,0.00019685,2]
[373936201,1753157471869,-460.0,0.00019685,2]
[373936202,1753157471879,-460.0,0.00019685,2]
[373936203,1753157471888,-460.0,0.00019685,2]
[373936204,1753157471898,-460.0,0.00019685,2]
[373936205,1753157471908,-983.0,0.00019685,2]
[373936206,1753157471917,-1144.31,0.00019685,2]
[373936207,1753157471928,-4717.98,0.00019685,2]
[373936208,1753157471938,-460.0,0.00019685,2]
[373936209,1753157471948,-1482.56,0.00019685,2]
[373936210,1753157471959,-460.0,0.00019685,2]
[373936211,1753157471969,-460.0,0.00019685,2]
[373936212,1753157471979,-895.53,0.00019685,2]
[373936213,1753157471988,-1287.62,0.00019685,2]
[373936214,1753157471999,-2097.13,0.00019685,2]
[373936215,1753157472008,-460.0,0.00019685,2]
[373936216,1753157472017,-746.5,0.00019685,2]
[373936217,1753157472027,-1436.52,0.00019685,2]
[373936218,1753157472037,-968.2,0.00019685,2]
[373936219,1753157472047,-3766.72,0.00019685,2]
[373936220,1753157472056,-9116.21513346,0.00019693,2]
[373936221,1753157472066,-231.28369723,0.00019709,2]
[373936222,1753157472076,-1000.0,0.00019744,2]
[373936223,1753157472086,-586.24,0.00019782,2]
[373936224,1753157472095,-875.56,0.00019782,2]
[373936225,1753157472105,-1107.94,0.00019782,2]
[373936226,1753157472114,-1309.67,0.00019782,2]
[373936227,1753157472124,-472.43,0.00019782,2]
[373936228,1753157472133,-460.0,0.00019782,2]
[373936229,1753157472143,-1235.69,0.00019782,2]
[373936230,1753157472153,-1109.78,0.00019782,2]
[373936231,1753157472162,-1365.04,0.00019782,2]
[373936232,1753157472172,-1373.31,0.00019782,2]
[373936233,1753157472182,-1034.84,0.00019782,2]
[373936234,1753157472191,-947.0,0.00019783,2]
[373936235,1753157472200,-460.0,0.00019783,2]
[373936236,1753157472209,-460.0,0.00019783,2]
[373936237,1753157472218,-574.23,0.00019783,2]
[373936238,1753157472227,-460.0,0.00019783,2]
[373936239,1753157472237,-1368.84,0.00019783,2]
[373936240,1753157472247,-1248.03,0.00019783,2]
[373936241,1753157472256,-734.62,0.00019783,2]
[373936242,1753157472265,-460.0,0.00019783,2]
[373936243,1753157472274,-1479.12,0.00019783,2]
[373936244,1753157472284,-493.18,0.00019783,2]
[373936245,1753157472293,-460.0,0.00019783,2]
[373936246,1753157472303,-662.43,0.00019783,2]
[373936247,1753157472312,-460.0,0.00019783,2]
[373936248,1753157472322,-894.47,0.00019783,2]
[373936249,1753157472331,-460.0,0.00019783,2]
[373936250,1753157472341,-460.0,0.00019783,2]
[373936251,1753157472350,-1792.3,0.00019783,2]
[373936252,1753157472359,-589.76,0.00019783,2]
[373936253,1753157472368,-585.75,0.00019783,2]
[373936254,1753157472378,-1492.63,0.00019783,2]
[373936255,1753157472387,-642.39,0.00019783,2]
[373936256,1753157472397,-460.0,0.00019783,2]
[373936257,1753157472406,-460.0,0.00019783,2]
[373936258,1753157472415,-303.26945783,0.00019783,2]
[373936259,1753157472429,-460.0,0.00019783,2]
[373936260,1753157472438,-460.0,0.00019783,2]
[373936261,1753157472447,-3276.24,0.00019783,2]
[373936262,1753157472457,-663.7,0.00019783,2]
[373936263,1753157472466,-1615.58,0.00019783,2]
[373936264,1753157472475,-4769.0,0.00019783,2]
[373936265,1753157472485,-961.28,0.00019783,2]
[373936266,1753157472494,-642.29,0.00019784,2]
[373936267,1753157472503,-574.98,0.00019784,2]
[373936268,1753157472512,-472.43,0.00019784,2]
[373936269,1753157472521,-741.22,0.00019784,2]
[373936270,1753157472531,-894.38,0.00019784,2]
[373936271,1753157472541,-477.92334565,0.00019784,2]
[373936272,1753157472550,-1857.94,0.00019784,2]
[373936273,1753157472560,-460.0,0.00019784,2]
[373936274,1753157472569,-470.42,0.00019786,2]
[373936275,1753157472578,-10375.95,0.00019786,2]
[373936276,1753157472588,-161.0,0.000198,4]
[373936277,1753157472597,-3000.0,0.00019812,2]
[373936278,1753157472607,-9116.21513346,0.00019831,2]
[373936279,1753157472616,-600.0,0.00019854,2]
[373936280,1753157472625,-159.8686689,0.00019856,2]
[373936281,1753157472634,-159.8686689,0.00019856,2]
[373936282,1753157472644,-159.8686689,0.00019856,2]
[373936283,1753157472653,-1154.7118534,0.00019856,2]
[373936284,1753157472662,-153.0,0.00019875,2]
[373936285,1753157472673,-153.0,0.00019875,2]
[373936286,1753157472683,-153.0,0.00019875,2]
[373936287,1753157472692,-153.0,0.00019875,2]
[373936288,1753157472701,-153.0,0.00019875,2]
[373936289,1753157472710,-153.0,0.00019875,2]
[373936290,1753157472720,-154.5925105,0.00019875,2]
[373936291,1753157472732,-153.0,0.00019875,2]
[373936292,1753157472742,-153.0,0.00019875,2]
[373936293,1753157472751,-153.0,0.00019875,2]
[373936294,1753157472760,-153.0,0.00019875,2]
[373936295,1753157472771,-153.0,0.00019875,2]
[373936296,1753157472780,-153.0,0.00019875,2]
[373936297,1753157472789,-153.0,0.00019875,2]
[373936298,1753157472798,-153.0,0.00019875,2]
[373936299,1753157472815,-154.6331535,0.00019875,2]
[373936300,1753157472824,-153.0,0.00019875,2]
[373936301,1753157472834,-308.9931055,0.00019875,2]
[373936302,1753157472843,-153.0,0.00019875,2]
[373936303,1753157472852,-153.0,0.00019875,2]
[373936304,1753157472862,-153.0,0.00019875,2]
[373936305,1753157472873,-153.0,0.00019875,2]
[373936306,1753157472882,-153.0,0.00019875,2]
[373936307,1753157472891,-2396.01,0.00019888,2]
[373936308,1753157472901,-2547.56,0.00019888,2]
[373936309,1753157472910,-3430.95,0.00019888,2]
[373936310,1753157472920,-151.32234978,0.00019888,2]
[373936311,1753157472929,-987.16,0.00019888,2]
[373936312,1753157472939,-151.0,0.00019888,2]
[373936313,1753157472948,-3208.19,0.00019888,2]
[373936314,1753157472958,-1890.9,0.00019888,2]
[373936315,1753157472967,-3213.13,0.00019888,2]
[373936316,1753157472978,-460.0,0.00019888,2]
[373936317,1753157472987,-151.0,0.00019891,2]
[373936318,1753157472997,-887.71930011,0.00019893,2]
[373936319,1753157473007,-182.14986764,0.000199,2]
[373936320,1753157473016,-151.0,0.00019921,2]
[373936321,1753157473026,-923.14,0.00019957,2]
[373936322,1753157473035,-1019.9,0.00019957,2]
[373936323,1753157473044,-3216.22,0.00019957,2]
[373936324,1753157473054,-460.0,0.00019958,2]
[373936325,1753157473063,-5107.47,0.00019958,2]
[373936326,1753157473073,-1520.76,0.00019958,2]
[373936327,1753157473082,-1027.18,0.00019958,2]
[373936328,1753157473092,-4817.64,0.00019958,2]
[373936329,1753157473101,-611.75,0.00019958,2]
[373936330,1753157473111,-1033.11,0.00019958,2]
[373936331,1753157473120,-2115.93,0.00019958,2]
[373936332,1753157473129,-1244.02,0.00019958,2]
[373936333,1753157473138,-716.0,0.00019959,2]
[373936334,1753157473148,-382.33223119,0.00019959,2]
[373936335,1753157473157,-713.91,0.00019959,2]
[373936336,1753157473166,-460.0,0.00019959,2]
[373936337,1753157473177,-527.76,0.00019959,2]
[373936338,1753157473186,-486.75,0.00019959,2]
[373936339,1753157473196,-537.44,0.00019959,2]
[373936340,1753157473205,-515.51,0.00019959,2]
[373936341,1753157473214,-460.0,0.00019959,2]
[373936342,1753157473224,-460.0,0.00019959,2]
[373936343,1753157473234,-460.0,0.00019959,2]
[373936344,1753157473243,-460.0,0.00019959,2]
[373936345,1753157473253,-9991.89,0.00019959,2]
[373936346,1753157473262,-478.81578655,0.00019959,2]
[373936347,1753157473271,-460.0,0.00019959,2]
[373936348,1753157473281,-460.0,0.00019959,2]
[373936349,1753157473290,-901.37,0.00019959,2]
[373936350,1753157473402,-250.87041366,0.00019959,2]
[373936351,1753157473412,-275.45016382,0.00019959,2]
[373936352,1753157473423,-601.87333163,0.00019959,2]
[373936353,1753157473432,-1172.04,0.00019959,2]
[373936354,1753157473441,-517.94910561,0.00019959,2]
[373936355,1753157473450,-1438.68,0.00019959,2]
[373936356,1753157473460,-1388.47,0.00019959,2]
[373936357,1753157473469,-959.19,0.00019959,2]
[373936358,1753157473478,-460.0,0.00019959,2]
[373936359,1753157473488,-460.0,0.00019959,2]
[373936360,1753157473498,-155.69,0.00019959,2]
[373936361,1753157473510,-460.0,0.00019959,2]
[373936362,1753157473519,-983.0,0.00019959,2]
[373936363,1753157473528,-1144.31,0.00019959,2]
[373936364,1753157473538,-4717.98,0.00019959,2]
[373936365,1753157473548,-460.0,0.00019959,2]
[373936366,1753157473558,-1482.56,0.00019959,2]
[373936367,1753157473567,-460.0,0.00019959,2]
[373936368,1753157473577,-460.0,0.00019959,2]
[373936369,1753157473586,-895.53,0.00019959,2]
[373936370,1753157473596,-1287.62,0.00019959,2]
[373936371,1753157473606,-2097.13,0.00019959,2]
[373936372,1753157473616,-460.0,0.00019959,2]
[373936373,1753157473625,-746.5,0.00019959,2]
[373936374,1753157473635,-1436.52,0.00019959,2]
[373936375,1753157473856,-968.2,0.00019959,2]
[373936376,1753157473866,-3766.72,0.00019959,2]
[373936377,1753157473876,-9116.21513346,0.00019969,2]
[373936378,1753157473886,-160.250892,0.00019969,2]
[373936379,1753157473896,-151.0,0.00019969,2]
[373936380,1753157473905,-889.9,0.00019969,3]
[373936381,1753157473915,-1000.0,0.0001998,2]
[373936382,1753157473925,-13970.23978458,0.0002,2]
[373936383,1753157473934,-2284.58279131,0.0002,3]
[373936384,1753157473944,-173.482,0.0002,2]
[373936385,1753157473953,-160.0,0.0002,3]
[373936386,1753157473963,-160.0,0.0002,3]
[373936387,1753157473972,-4000.0,0.0002,4]
[373936388,1753157473982,-586.24,0.00020056,2]
[373936389,1753157473991,-875.56,0.00020056,2]
[373936390,1753157474001,-1107.94,0.00020056,2]
[373936391,1753157474010,-1309.67,0.00020056,2]
[373936392,1753157474020,-472.43,0.00020056,2]
[373936393,1753157474030,-460.0,0.00020056,2]
[373936394,1753157474040,-1235.69,0.00020056,2]
[373936395,1753157474049,-1109.78,0.00020056,2]
[373936396,1753157474059,-1365.04,0.00020056,2]
[373936397,1753157474068,-1373.31,0.00020056,2]
[373936398,1753157474078,-1034.84,0.00020056,2]
[373936399,1753157474087,-947.0,0.00020057,2]
[373936400,1753157474097,-460.0,0.00020057,2]
[373936401,1753157474106,-460.0,0.00020057,2]
[373936402,1753157474116,-574.23,0.00020057,2]
[373936403,1753157474125,-460.0,0.00020057,2]
[373936404,1753157474134,-1368.84,0.00020057,2]
[373936405,1753157474144,-1248.03,0.00020057,2]
[373936406,1753157474153,-734.62,0.00020057,2]
[373936407,1753157474163,-460.0,0.00020057,2]
[373936408,1753157474174,-1479.12,0.00020057,2]
[373936409,1753157474183,-493.18,0.00020057,2]
[373936410,1753157474192,-460.0,0.00020057,2]
[373936411,1753157474202,-662.43,0.00020057,2]
[373936412,1753157474211,-460.0,0.00020057,2]
[373936413,1753157474220,-894.47,0.00020057,2]
[373936414,1753157474229,-460.0,0.00020057,2]
[373936415,1753157474239,-594.89009144,0.00020057,2]
[373936416,1753157474248,-1792.3,0.00020057,2]
[373936417,1753157474257,-589.76,0.00020057,2]
[373936418,1753157474267,-585.75,0.00020057,2]
[373936419,1753157474276,-1492.63,0.00020057,2]
[373936420,1753157474286,-642.39,0.00020057,2]
[373936421,1753157474296,-460.0,0.00020057,2]
[373936422,1753157474306,-460.0,0.00020057,2]
[373936423,1753157474316,-460.0,0.00020057,2]
[373936424,1753157474325,-460.0,0.00020057,2]
[373936425,1753157474335,-3276.24,0.00020057,2]
[373936426,1753157474344,-663.7,0.00020057,2]
[373936427,1753157474353,-1615.58,0.00020057,2]
[373936428,1753157474362,-4769.0,0.00020057,2]
[373936429,1753157474371,-961.28,0.00020057,2]
[373936430,1753157474380,-642.29,0.00020058,2]
[373936431,1753157474389,-574.98,0.00020058,2]
[373936432,1753157474398,-472.43,0.00020058,2]
[373936433,1753157474407,-741.22,0.00020058,2]
[373936434,1753157474417,-894.38,0.00020058,2]
[373936435,1753157474427,-1857.94,0.00020058,2]
[373936436,1753157474437,-460.0,0.00020058,2]
[373936437,1753157474446,-600.0,0.00020059,2]
[373936438,1753157474456,-470.42,0.0002006,2]
[373936439,1753157474465,-10375.95,0.0002006,2]
[373936440,1753157474474,-343.164435,0.0002009,3]
[373936441,1753157474484,-9116.21513346,0.00020107,2]
[373936442,1753157474493,-2000.0,0.00020116,2]
[373936443,1753157474502,-1505.07123105,0.00020116,2]
[373936444,1753157474511,-2000.0,0.00020116,2]
[373936445,1753157474522,-2000.0,0.00020116,2]
[373936446,1753157474531,-2000.0,0.00020116,2]
[373936447,1753157474540,-496.10722544,0.00020116,2]
[373936448,1753157474550,-2000.0,0.00020116,2]
[373936449,1753157474560,-2000.0,0.00020116,2]
[373936450,1753157474569,-2000.0,0.00020116,2]
[373936451,1753157474579,-2000.0,0.00020116,2]
[373936452,1753157474589,-460.0,0.0002015,2]
[373936453,1753157474598,-2396.01,0.00020162,2]
[373936454,1753157474607,-2547.56,0.00020162,2]
[373936455,1753157474616,-3430.95,0.00020162,2]
[373936456,1753157474626,-987.16,0.00020162,2]
[373936457,1753157474635,-3208.19,0.00020162,2]
[373936458,1753157474644,-1890.9,0.00020162,2]
[373936459,1753157474654,-3213.13,0.00020162,2]
[373936460,1753157474664,-460.0,0.00020162,2]
[373936461,1753157474674,-151.0,0.00020165,2]
[373936462,1753157474684,-151.0,0.00020165,2]
[373936463,1753157474693,-500.0,0.00020173,2]
[373936464,1753157474702,-231.532145,0.00020187,2]
[373936465,1753157474711,-160.0,0.00020195,3]
[373936466,1753157474721,-587.0,0.00020213,2]
[373936467,1753157474734,-923.14,0.00020231,2]
[373936468,1753157474743,-1019.9,0.00020231,2]
[373936469,1753157474753,-3216.22,0.00020231,2]
[373936470,1753157474763,-460.0,0.00020232,2]
[373936471,1753157474773,-5107.47,0.00020232,2]
[373936472,1753157474783,-1520.76,0.00020232,2]
[373936473,1753157474793,-1027.18,0.00020232,2]
[373936474,1753157474803,-4817.64,0.00020232,2]
[373936475,1753157474813,-611.75,0.00020232,2]
[373936476,1753157474822,-1033.11,0.00020232,2]
[373936477,1753157474831,-2115.93,0.00020232,2]
[373936478,1753157474841,-1244.02,0.00020232,2]
[373936479,1753157474851,-716.0,0.00020233,2]
[373936480,1753157474861,-713.91,0.00020233,2]
[373936481,1753157474871,-460.0,0.00020233,2]
[373936482,1753157474880,-527.76,0.00020233,2]
[373936483,1753157474890,-486.75,0.00020233,2]
[373936484,1753157474900,-537.44,0.00020233,2]
[373936485,1753157474910,-515.51,0.00020233,2]
[373936486,1753157474921,-460.0,0.00020233,2]
[373936487,1753157474930,-460.0,0.00020233,2]
[373936488,1753157474940,-460.0,0.00020233,2]
[373936489,1753157474949,-460.0,0.00020233,2]
[373936490,1753157474958,-9991.89,0.00020233,2]
[373936491,1753157474968,-460.0,0.00020233,2]
[373936492,1753157474977,-460.0,0.00020233,2]
[373936493,1753157474986,-901.37,0.00020233,2]
[373936494,1753157474995,-1172.04,0.00020233,2]
[373936495,1753157475004,-1438.68,0.00020233,2]
[373936496,1753157475014,-1388.47,0.00020233,2]
[373936497,1753157475023,-959.19,0.00020233,2]
[373936498,1753157475033,-460.0,0.00020233,2]
[373936499,1753157475042,-460.0,0.00020233,2]
[373936500,1753157475052,-460.0,0.00020233,2]
[373936501,1753157475061,-983.0,0.00020233,2]
[373936502,1753157475070,-1144.31,0.00020233,2]
[373936503,1753157475080,-4717.98,0.00020233,2]
[373936504,1753157475090,-460.0,0.00020233,2]
[373936505,1753157475099,-1482.56,0.00020233,2]
[373936506,1753157475108,-460.0,0.00020233,2]
[373936507,1753157475117,-460.0,0.00020233,2]
[373936508,1753157475127,-895.53,0.00020233,2]
[373936509,1753157475136,-1287.62,0.00020233,2]
[373936510,1753157475146,-2097.13,0.00020233,2]
[373936511,1753157475156,-460.0,0.00020233,2]
[373936512,1753157475165,-746.5,0.00020233,2]
[373936513,1753157475179,-1436.52,0.00020233,2]
[373936514,1753157475189,-968.2,0.00020233,2]
[373936515,1753157475198,-3766.72,0.00020233,2]
[373936516,1753157475208,-343.164435,0.00020242,3]
[373936517,1753157475218,-9116.21513346,0.00020245,2]
[373936518,1753157475227,-209.424477,0.00020263,2]
[373936519,1753157475236,-971.38084335,0.00020263,2]
[373936520,1753157475246,-343.164435,0.00020273,2]
[373936521,1753157475255,-151.0,0.00020279,2]
[373936522,1753157475264,-1000.0,0.00020288,2]
[373936523,1753157475273,-1500.0,0.00020292,2]
[373936524,1753157475283,-586.24,0.0002033,2]
[373936525,1753157475292,-875.56,0.0002033,2]
[373936526,1753157475302,-1107.94,0.0002033,2]
[373936527,1753157475312,-1309.67,0.0002033,2]
[373936528,1753157475321,-472.43,0.0002033,2]
[373936529,1753157475330,-460.0,0.0002033,2]
[373936530,1753157475339,-1235.69,0.0002033,2]
[373936531,1753157475348,-1109.78,0.0002033,2]
[373936532,1753157475358,-1365.04,0.0002033,2]
[373936533,1753157475367,-1373.31,0.0002033,2]
[373936534,1753157475377,-1034.84,0.0002033,2]
[373936535,1753157475386,-947.0,0.00020331,2]
[373936536,1753157475395,-460.0,0.00020331,2]
[373936537,1753157475404,-460.0,0.00020331,2]
[373936538,1753157475414,-574.23,0.00020331,2]
[373936539,1753157475424,-460.0,0.00020331,2]
[373936540,1753157475434,-1368.84,0.00020331,2]
[373936541,1753157475443,-1248.03,0.00020331,2]
[373936542,1753157475452,-734.62,0.00020331,2]
[373936543,1753157475462,-506.78599372,0.00020331,2]
[373936544,1753157475472,-1479.12,0.00020331,2]
[373936545,1753157475481,-493.18,0.00020331,2]
[373936546,1753157475490,-460.0,0.00020331,2]
[373936547,1753157475499,-662.43,0.00020331,2]
[373936548,1753157475508,-460.0,0.00020331,2]
[373936549,1753157475517,-894.47,0.00020331,2]
[373936550,1753157475526,-486.37037601,0.00020331,2]
[373936551,1753157475535,-1792.3,0.00020331,2]
[373936552,1753157475544,-589.76,0.00020331,2]
[373936553,1753157475553,-585.75,0.00020331,2]
[373936554,1753157475562,-1492.63,0.00020331,2]
[373936555,1753157475572,-642.39,0.00020331,2]
[373936556,1753157475581,-460.0,0.00020331,2]
[373936557,1753157475590,-460.0,0.00020331,2]
[373936558,1753157475600,-460.0,0.00020331,2]
[373936559,1753157475609,-460.0,0.00020331,2]
[373936560,1753157475618,-3276.24,0.00020331,2]
[373936561,1753157475628,-663.7,0.00020331,2]
[373936562,1753157475637,-1615.58,0.00020331,2]
[373936563,1753157475646,-4769.0,0.00020331,2]
[373936564,1753157475655,-961.28,0.00020331,2]
[373936565,1753157475665,-642.29,0.00020332,2]
[373936566,1753157475676,-574.98,0.00020332,2]
[373936567,1753157475685,-472.43,0.00020332,2]
[373936568,1753157475694,-741.22,0.00020332,2]
[373936569,1753157475703,-894.38,0.00020332,2]
[373936570,1753157475811,-1857.94,0.00020332,2]
[373936571,1753157475821,-460.0,0.00020332,2]
[373936572,1753157475831,-470.42,0.00020334,2]
[373936573,1753157475841,-10375.95,0.00020334,2]
[373936574,1753157475851,-3500.0,0.0002036,2]
[373936575,1753157475861,-9116.21513346,0.00020383,3]
[373936576,1753157475870,-343.164435,0.00020395,3]
[373936577,1753157475880,-2000.0,0.00020398,3]
[373936578,1753157475889,-1091.0,0.00020415,2]
[373936579,1753157475899,-900.0,0.00020427,2]
[373936580,1753157475909,-2396.01,0.00020436,2]
[373936581,1753157475919,-2547.56,0.00020436,2]
[373936582,1753157475930,-3430.95,0.00020436,2]
[373936583,1753157475939,-987.16,0.00020436,2]
[373936584,1753157475949,-3208.19,0.00020436,2]
[373936585,1753157475959,-1890.9,0.00020436,2]
[373936586,1753157475968,-3213.13,0.00020436,2]
[373936587,1753157475978,-460.0,0.00020436,2]
[373936588,1753157475988,-224.32,0.0002044,2]
[373936589,1753157475997,-2000.0,0.00020482,2]
[373936590,1753157476007,-9295.62256021,0.000205,2]
[373936591,1753157476016,-889.9,0.00020504,4]
[373936592,1753157476025,-923.14,0.00020505,2]
[373936593,1753157476035,-1019.9,0.00020505,2]
[373936594,1753157476044,-3216.22,0.00020505,2]
[373936595,1753157476053,-460.0,0.00020506,2]
[373936596,1753157476062,-5107.47,0.00020506,2]
[373936597,1753157476072,-1520.76,0.00020506,2]
[373936598,1753157476081,-1027.18,0.00020506,2]
[373936599,1753157476091,-4817.64,0.00020506,2]
[373936600,1753157476100,-611.75,0.00020506,2]
[373936601,1753157476110,-1033.11,0.00020506,2]
[373936602,1753157476119,-2115.93,0.00020506,2]
[373936603,1753157476128,-1244.02,0.00020506,2]
[373936604,1753157476138,-716.0,0.00020507,2]
[373936605,1753157476147,-713.91,0.00020507,2]
[373936606,1753157476156,-460.0,0.00020507,2]
[373936607,1753157476165,-527.76,0.00020507,2]
[373936608,1753157476179,-486.75,0.00020507,2]
[373936609,1753157476188,-537.44,0.00020507,2]
[373936610,1753157476197,-515.51,0.00020507,2]
[373936611,1753157476207,-460.0,0.00020507,2]
[373936612,1753157476216,-460.0,0.00020507,2]
[373936613,1753157476225,-460.0,0.00020507,2]
[373936614,1753157476234,-460.0,0.00020507,2]
[373936615,1753157476243,-9991.89,0.00020507,2]
[373936616,1753157476253,-460.0,0.00020507,2]
[373936617,1753157476262,-489.33150724,0.00020507,2]
[373936618,1753157476271,-901.37,0.00020507,2]
[373936619,1753157476280,-1172.04,0.00020507,2]
[373936620,1753157476289,-1438.68,0.00020507,2]
[373936621,1753157476298,-1388.47,0.00020507,2]
[373936622,1753157476308,-959.19,0.00020507,2]
[373936623,1753157476318,-476.33991273,0.00020507,2]
[373936624,1753157476327,-460.0,0.00020507,2]
[373936625,1753157476336,-460.0,0.00020507,2]
[373936626,1753157476346,-983.0,0.00020507,2]
[373936627,1753157476356,-1144.31,0.00020507,2]
[373936628,1753157476366,-4717.98,0.00020507,2]
[373936629,1753157476375,-460.0,0.00020507,2]